Cogmind - Beta 15 @@@ ROGUE MODE // 2025.06.03 @ 19:22:03 Player: 7604 Result: Destroyed by S-10 Pest with Light Assault Rifle Performance ------------- Evolutions (0) 0 Regions Visited (4) 800 Robots Destroyed (30) 150 Value Destroyed (627) 627 Prototype IDs (17) 340 Alien Tech Used (0) 0 Bonus (0) 0 TOTAL SCORE: 1917 Bonus ------- None Cogmind --------- Core Integrity 0/250 Matter 213/300 Energy 250/250 System Corruption 0% Temperature Cool (4) Movement Treading (320) Ox2 Location -9/Mines Parts ------- > --- POWER (1) -------- Ion Engine > --- PROPULSION (2) --- Light Treads Light Treads > --- UTILITY (2) ------ Huge Storage Unit Core Shielding > --- WEAPON (2) ------- Improved Light Cannon Improved Light Cannon > --- INVENTORY (25) --- Light Ion Engine Light Treads Improved Heat Sink Structural Scanner Improved Terrain Scanner Seismic Detector Light Armor Plating Light Armor Plating Light Armor Plating Hacking Suite Authchip [Propulsion] Authchip [Armor] Small Laser Small Laser Assault Rifle Light Assault Rifle Light Assault Rifle Improved Light Cannon Improved Light Cannon Mini Grenade Launcher Mini Grenade Launcher Mini Grenade Launcher Mini Grenade Launcher Datajack Mining Laser Peak State ------------ > --- POWER ------------ Ion Engine > --- PROPULSION ------- Light Treads Light Treads > --- UTILITY ---------- Huge Storage Unit Seismic Detector > --- WEAPON ----------- Improved Light Cannon Improved Light Cannon > --- INVENTORY -------- Light Ion Engine Light Treads Improved Heat Sink Structural Scanner Improved Terrain Scanner Core Shielding Light Armor Plating Hacking Suite Authchip [Propulsion] Authchip [Armor] Small Laser Small Laser Assault Rifle Light Assault Rifle Light Assault Rifle Improved Light Cannon Improved Light Cannon Mini Grenade Launcher Mini Grenade Launcher Mini Grenade Launcher Mini Grenade Launcher Mining Laser [Rating: 13] Favorites ----------- Power Ion Engine Engine Ion Engine Propulsion Light Treads Treads Light Treads Leg Aluminum Leg Wheel Compact Wheel Utility Huge Storage Unit Device Seismic Detector Storage Huge Storage Unit Protection Core Shielding Weapon Improved Light Cannon Energy Gun Small Laser Ballistic Gun Assault Rifle Ballistic Cannon Improved Light Cannon Launcher Mini Grenade Launcher Special Weapon Mining Laser Special Melee Weapon Datajack Build | -11 -10 -10 -10 -9 ------- Run | Yrd Mat Min Exi Min Slots Evolved . | . . . . . Power . | . . . . . Propulsion . | . . . . . Utility . | . . . . . Weapon . | . . . . . Parts Attached 30 | 3 26 . 1 . Power 2 | . 2 . . . Engine 2 | . 2 . . . Core . | . . . . . Reactor . | . . . . . Propulsion 10 | 2 8 . . . Treads 6 | 2 4 . . . Leg 2 | . 2 . . . Wheel 2 | . 2 . . . Hover . | . . . . . Flight . | . . . . . Utility 6 | 1 5 . . . Device 3 | 1 2 . . . Storage 2 | . 2 . . . Processor . | . . . . . Hackware . | . . . . . Protection 1 | . 1 . . . Artifact . | . . . . . Weapon 12 | . 11 . 1 . Energy Gun 1 | . 1 . . . Energy Cannon . | . . . . . Ballistic Gun 2 | . 2 . . . Ballistic Cannon 6 | . 6 . . . Launcher 1 | . 1 . . . Special Weapon 1 | . 1 . . . Impact Weapon . | . . . . . Slashing Weapon . | . . . . . Piercing Weapon . | . . . . . Special Melee Weapon 1 | . . . 1 . Unidentified Prototypes . | . . . . . Parts Lost 8 | . 8 . . . Power 2 | . 2 . . . Propulsion 3 | . 3 . . . Utility 1 | . 1 . . . Weapon 2 | . 2 . . . Highest Loss Streak 5 | . 5 . . . To Critical Strikes . | . . . . . Average Backups 18 | 5 16 25 25 25 Power . | 1 . 1 1 1 Propulsion . | 3 . 1 1 1 Utility 6 | . 5 10 10 10 Weapon 9 | 1 8 12 12 12 Tool/Special . | . . . . . Unused Backups 18 | . 4 . . 14 Power 2 | . 1 . . 1 Propulsion 1 | . 1 . . . Utility 10 | . 2 . . 8 Weapon 5 | . . . . 5 Tool/Special . | . . . . . Average Slot Usage (%) 96 | . 94 100 100 100 Engine 11 | . 10 14 14 14 Treads 20 | . 18 28 28 28 Leg 2 | . 2 . . . Wheel 4 | . 5 . . . Device 11 | . 11 13 13 . Storage 14 | . 14 14 14 14 Protection 1 | . 2 . . 14 Energy Gun 2 | . 2 . . . Ballistic Gun 7 | . 10 . . . Ballistic Cannon 14 | . 13 28 14 28 Special Weapon 1 | . 1 . . . Special Melee Weapon 2 | . . . 13 . Peak Build Rating 13 | 7 13 13 13 13 Average Rating 10 | 6 10 13 12 13 On Entrance 10 | 6 7 13 13 13 Naked Turns . | . . . . . Heaviest Build 94 | 11 94 94 94 . Greatest Support 40 | 40 40 40 40 . Greatest Overweight (x) 8 | . 8 2 2 . Average Overweight (x) 2 | . 2 2 2 . Largest Inventory Capacity 25 | 8 25 25 25 25 Average Capacity 21 | 8 20 25 25 25 Most Carried 25 | 6 25 25 25 25 Average Carried 18 | 5 16 25 25 25 Final Capacity 25 | 8 25 25 25 25 Final Carried 25 | 2 25 25 25 25 Class Distribution -------------------- 92% | Mutant 7% | Scavenger-Mutant Dominant Class ---------------- Mutant | -10/Materials Mutant | -10/Mines Mutant | -10/Exiles Mutant | -9/Mines Resources | -11 -10 -10 -10 -9 ----------- Run | Yrd Mat Min Exi Min Matter Collected 984 | 194 790 . . . Remotely . | . . . . . Salvage Created 766 | 15 751 . . . Parts 54 | 2 52 . . . Haulers Intercepted 2 | . 2 . . . Recyclers Shooed 2 | 1 1 . . . Parts Field Recycled . | . . . . . Retrieved Matter . | . . . . . Parts Self-Destructed . | . . . . . Prevented . | . . . . . Kills | -11 -10 -10 -10 -9 ------- Run | Yrd Mat Min Exi Min Combat Hostiles Destroyed 19 | . 19 . . . Guns 9 | . 9 . . . Cannons 10 | . 10 . . . Classes Destroyed 8 | 1 7 . . . Worker 2 | . 2 . . . Tunneler 1 | 1 . . . . Hauler 2 | . 2 . . . Recycler 2 | . 2 . . . Operator 1 | . 1 . . . Watcher 3 | . 3 . . . Swarmer 6 | . 6 . . . Grunt 13 | . 13 . . . Best Kill Streak 6 | 1 6 . . . Combat Bots Only 6 | . 6 . . . Max Kills in Single Turn 2 | 1 2 . . . Gunslinging 1 | . 1 . . . Exploded . | . . . . . Melee . | . . . . . Uniques/NPCs Destroyed . | . . . . . Combat | -11 -10 -10 -10 -9 -------- Run | Yrd Mat Min Exi Min Hostile Shots Fired 169 | . 163 . . 6 Missed 44 | . 40 . . 4 Hits 125 | . 123 . . 2 Projectile 125 | . 123 . . 2 Critical Strikes 1 | . 1 . . . Damage Taken 1372 | . 1356 . . 16 Core 253 | . 245 . . 8 Absorbed by Shields . | . . . . . Redirected to Shielding 5 | . 3 . . 2 Core Remaining (%) 100 | 100 . . . . Volleys Fired 89 | 4 84 . . 1 Largest 2 | 2 2 . . 2 Hottest 100 | 80 100 . . 66 Shots Fired 171 | 8 161 . . 2 Gun 82 | 8 74 . . . Cannon 82 | . 80 . . 2 Launcher 1 | . 1 . . . Special 6 | . 6 . . . Kinetic 128 | . 126 . . 2 Thermal 42 | 8 34 . . . Explosive 1 | . 1 . . . Electromagnetic . | . . . . . Robot Hit Streak 8 | 5 8 . . . Robot Miss Streak 7 | 1 7 . . 2 Penetration Max . | . . . . . Secondary Targets 2 | . 2 . . . Max Gunslinging Chain 1 | . 1 . . . Shots Hit Robots 107 | 5 98 . 4 . Core Hits 44 | 2 42 . . . Critical Kills . | . . . . . Critical Parts Destroyed . | . . . . . Critical Strikes 3 | . 3 . . . Blast 3 | . 3 . . . Melee Attacks 4 | . . . 4 . Impact . | . . . . . Slashing . | . . . . . Piercing . | . . . . . Sneak Attacks 4 | . . . 4 . Combat Hostiles . | . . . . . Follow-up Attacks . | . . . . . Damage Inflicted 1662 | 53 1587 . . 22 Guns 626 | 53 573 . . . Cannons 1032 | . 1010 . . 22 Explosions . | . . . . . Melee . | . . . . . Ramming 4 | . 4 . . . Kinetic 1395 | . 1373 . . 22 Thermal 263 | 53 210 . . . Explosive . | . . . . . Electromagnetic . | . . . . . Impact . | . . . . . Slashing . | . . . . . Piercing . | . . . . . Highest Corruption . | . . . . . Average Corruption . | . . . . . Corruption Purged . | . . . . . Corruption Blocked . | . . . . . Overload Shots . | . . . . . Overflow Damage 14 | . 14 . . . Projectiles 14 | . 14 . . . Explosions . | . . . . . Melee . | . . . . . Knockbacks 12 | . 12 . . . Impact . | . . . . . Kinetic 12 | . 12 . . . Secondary . | . . . . . Self-Inflicted Damage . | . . . . . Shots . | . . . . . Rammed 2 | . 2 . . . Targets Rammed 2 | . 2 . . . Kicked . | . . . . . Crushed . | . . . . . Highest Temperature 135 | 54 135 . . 4 Average Temperature 33 | 33 33 . . 3 Received Heat Transfer 621 | . 621 . . . Siege Activations . | . . . . . Martial Activations . | . . . . . Shielding Activations . | . . . . . Robots Disrupted . | . . . . . Combat Hostiles . | . . . . . Robots Corrupted . | . . . . . Combat Hostiles . | . . . . . Parts Fried . | . . . . . Impact Corruptions . | . . . . . Robots Melted . | . . . . . Combat Hostiles . | . . . . . Parts Melted 1 | . 1 . . . Heat Transferred 600 | 125 475 . . . Parts Sabotaged . | . . . . . Parts Stolen . | . . . . . Parts Stripped . | . . . . . Power Chain Reactions . | . . . . . Alert | -11 -10 -10 -10 -9 ------- Run | Yrd Mat Min Exi Min Maximum Alert Level . | . . . . . Low Security (%) 100 | 100 100 100 . 100 Level 1 . | . . . . . Level 2 . | . . . . . Level 3 . | . . . . . Level 4 . | . . . . . Level 5 . | . . . . . High Security . | . . . . . Max Security . | . . . . . Peak Influence 157 | 5 157 40 . . Initial 40 | . . 40 . . Average 41 | 1 45 7 . . Influence Increases 691 | 5 686 . . . Destroy 0b10 Robot/C 380 | . 380 . . . Destroy 0b10 Robot/NC 55 | 5 50 . . . Destroy Leader 90 | . 90 . . . Successful Hack 24 | . 24 . . . Select Force Hacks 60 | . 60 . . . Disable Machine 15 | . 15 . . . Destroy Structure 22 | . 22 . . . Lose Combat Pursuer 45 | . 45 . . . Influence Decreases 691 | 5 582 104 . . Entered New Map 64 | . . 64 . . Time Decay 547 | 5 502 40 . . Lost Part 80 | . 80 . . . Squads Dispatched 5 | . 5 . . . Investigation 3 | . 3 . . . Extermination . | . . . . . Reinforcement 2 | . 2 . . . Assault . | . . . . . Garrison . | . . . . . Intercept . | . . . . . Searches Triggered . | . . . . . Construction Impeded . | . . . . . Haulers Reinforced . | . . . . . Active Scanning Responses . | . . . . . Cargo Convoy Interrupts . | . . . . . Stealth | -11 -10 -10 -10 -9 --------- Run | Yrd Mat Min Exi Min Distress Signals 2 | . 2 . . . Communications Jammed . | . . . . . Distress Signals . | . . . . . Times Spotted 36 | . 33 . . 3 Peak Tracking Total 5 | . 5 . . 3 Tactical Retreats 2 | . 2 . . . Traps | -11 -10 -10 -10 -9 ------- Run | Yrd Mat Min Exi Min Traps Triggered 2 | . 2 . . . Indirectly . | . . . . . Trap Hack Attempts . | . . . . . Triggered . | . . . . . Disarmed . | . . . . . Reprogrammed . | . . . . . Reused . | . . . . . Traps Extracted . | . . . . . Installed . | . . . . . Triggered . | . . . . . Machines | -11 -10 -10 -10 -9 ---------- Run | Yrd Mat Min Exi Min Machines Disabled 2 | . 2 . . . Max in Single Turn 1 | . 1 . . . Machines Repaired . | . . . . . Machines Dismantled . | . . . . . Machines Sabotaged . | . . . . . Overloaded Fab Kills . | . . . . . Hacking | -11 -10 -10 -10 -9 --------- Run | Yrd Mat Min Exi Min Machines Accessed 10 | . 9 . 1 . Terminals 7 | . 7 . . . Fabricators . | . . . . . Repair Stations . | . . . . . Recycling Units 2 | . 2 . . . Scanalyzers . | . . . . . Garrison Access . | . . . . . Total Hacks 29 | . 28 . 1 . Successful 15 | . 14 . 1 . Failed 14 | . 14 . . . Catastrophic 1 | . 1 . . . Database Lockouts . | . . . . . Manual 22 | . 22 . . . Terminals 24 | . 24 . . . Fabricators . | . . . . . Repair Stations . | . . . . . Recycling Units 4 | . 4 . . . Scanalyzers . | . . . . . Garrison Access . | . . . . . Terminal Hacks 5 | . 4 . 1 . Record 1 | . . . 1 . Robot Schematic 1 | . 1 . . . Prototype ID Bank 2 | . 2 . . . Alert Level 1 | . 1 . . . Fabricator Hacks . | . . . . . Repair Station Hacks . | . . . . . Recycling Unit Hacks . | . . . . . Scanalyzer . | . . . . . Garrison Access Hacks . | . . . . . Unauthorized Hacks 10 | . 10 . . . Terminals 8 | . 8 . . . Botnet 2 | . 2 . . . Operators 1 | . 1 . . . Skim 5 | . 5 . . . Fabricators . | . . . . . Repair Stations . | . . . . . Recycling Units 2 | . 2 . . . Tunnel 2 | . 2 . . . Scanalyzers . | . . . . . Garrison Access . | . . . . . Data Cores Recovered . | . . . . . Used . | . . . . . Hacking Detections 8 | . 8 . . . Full Trace Events . | . . . . . Feedback Events . | . . . . . Feedback Blocked . | . . . . . Robot Schematics Acquired 1 | . 1 . . . Robots Built . | . . . . . Authchips . | . . . . . Time . | . . . . . Total Robot Build Rating . | . . . . . Part Schematics Acquired . | . . . . . Parts Built . | . . . . . Authchips . | . . . . . Time . | . . . . . Total Part Build Rating . | . . . . . Parts Repaired . | . . . . . Time . | . . . . . Parts Recycled . | . . . . . Recycled Matter . | . . . . . Retrieved Matter . | . . . . . Retrieved Components . | . . . . . Parts Scanalyzed . | . . . . . Part Schematics Acquired . | . . . . . Parts Damaged . | . . . . . Bothacking | -11 -10 -10 -10 -9 ------------ Run | Yrd Mat Min Exi Min Used RIF Installer . | . . . . . Robots Hacked 4 | . . . 4 . Non-combat 3 | . . . 3 . Combat 1 | . . . 1 . Robot Hacks Applied 4 | . . . 4 . parse_system 4 | . . . 4 . Relay Couplers Released . | . . . . . Fabnet Peak Effective % . | . . . . . Robots Rewired . | . . . . . Allies Hacked . | . . . . . Hacks Repelled . | . . . . . Allies | -11 -10 -10 -10 -9 -------- Run | Yrd Mat Min Exi Min Total Allies . | . . . . . Largest Group . | . . . . . Highest-Rated Group . | . . . . . Highest-Rated Ally . | . . . . . Total Orders . | . . . . . Ally Attacks . | . . . . . Total Damage . | . . . . . Kills . | . . . . . Allies Corrupted . | . . . . . Allies Melted . | . . . . . Intel | -11 -10 -10 -10 -9 ------- Run | Yrd Mat Min Exi Min Active Infowar (turns) 3487 | 12 2561 258 656 . Structural 571 | . 571 . . . Seismic 2916 | 12 1990 258 656 . Robot Analysis Total . | . . . . . Derelict Logs Recovered . | . . . . . Drone Launches . | . . . . . Drone Recoveries . | . . . . . Exploration | -11 -10 -10 -10 -9 ------------- Run | Yrd Mat Min Exi Min Turns Passed 4064 | 35 3104 259 664 2 Spaces Moved 1303 | 14 1005 79 205 . Core 2 | . 2 . . . Treads 877 | 3 590 79 205 . Legs 137 | 11 126 . . . Wheels 287 | . 287 . . . Hover . | . . . . . Flight . | . . . . . Fastest Speed 120 | 120 120 320 320 . Average Speed 233 | 128 211 320 320 . Slowest Speed 320 | 160 320 320 320 . Overloaded Moves . | . . . . . Propulsion Burnouts . | . . . . . Robots Hopped . | . . . . . Potential Cave-ins . | . . . . . Cave-ins Triggered . | . . . . . Exploration Rate (%) 38 | 3 98 25 64 3 Regions Visited 4 Branch Regions 3 Pre-discovered Areas 3 | . 2 . 1 . Known Exits Taken . | . . . . . Unknown Exits Taken 4 | 1 1 1 1 . Scrap Searched . | . . . . . Spaces Dug 6 | . 6 . . . Terrain Destroyed 22 | . 22 . . . Melee . | . . . . . Projectile 8 | . 8 . . . AOE 14 | . 14 . . . Terrain Rammed . | . . . . . Walls Destroyed . | . . . . . Machines Disabled . | . . . . . Actions | -11 -10 -10 -10 -9 --------- Run | Yrd Mat Min Exi Min Total 2128 | 24 1806 86 211 1 Wait 639 | . 632 7 . . Move 1299 | 13 1004 78 204 . Hop . | . . . . . Pick Up 30 | . 30 . . . Fast Attach 9 | 1 8 . . . Attach 4 | . 4 . . . Detach 4 | . 4 . . . Swap 35 | 2 29 1 3 . Drop 13 | 4 9 . . . Fire 89 | 4 84 . . 1 Melee 4 | . . . 4 . Ram . | . . . . . Kick . | . . . . . Crush 2 | . 2 . . . Escape Stasis . | . . . . . Rewire . | . . . . . Trap . | . . . . . Miscellaneous . | . . . . . Route ------- -11/Scrapyard -10/Materials (discovered 6 exits: *Mat x3 / [*Min x2] / *Sub) -10/Mines (discovered 4 exits: *Mat x2 / *Exi / Sub) -10/Exiles -9/Mines History --------- Turn | Location | Event 1 | -11/Scrapyard | Discovered new exit (range 2) 36 | -11/Scrapyard | Entered Materials 257 | -10/Materials | Discovered new exit (range 13) 322 | -10/Materials | Build established: Mutant 535 | -10/Materials | Core integrity fell below 50% 564 | -10/Materials | Lost 3 parts (1p2n) 573 | -10/Materials | Core integrity fell below 20% 618 | -10/Materials | Lost 5 parts (1p1n1u2w) 948 | -10/Materials | Discovered new exit (range 15) 1728 | -10/Materials | Discovered new exit (range 9) 2029 | -10/Materials | Discovered new exit (range 8) 2130 | -10/Materials | Discovered new exit (range 15) 2653 | -10/Materials | Discovered new exit (range 5) 2834 | -10/Materials | Learned location of 2 exits from Mines 2898 | -10/Materials | Learned location of 1 exit from Recycling 2950 | -10/Materials | Learned 4 Subcaves zone layouts 2994 | -10/Materials | Learned 4 Subcaves zone layouts 3117 | -10/Materials | Loaded intel: 8 terminal locations 3140 | -10/Materials | Entered Mines 3141 | -10/Mines | Identified exit to Subcaves 3141 | -10/Mines | Identified exit to Materials 3201 | -10/Mines | Met a Derelict bent on vengeance 3309 | -10/Mines | Discovered exit to Materials (range 13) 3386 | -10/Mines | Deemed a non-threat by the Exiles lab entrance 3386 | -10/Mines | Discovered new exit (range 5) 3399 | -10/Mines | Entered Exiles 3475 | -10/Exiles | Met 8R-AWN 3534 | -10/Exiles | Met EX-HEX 3654 | -10/Exiles | Met EX-DEC 3741 | -10/Exiles | Learned location of Zion (-7) 3805 | -10/Exiles | Met EX-BIN 4034 | -10/Exiles | Discovered new exit (range 10) 4063 | -10/Exiles | Entered Mines 4065 | -9/Mines | Destroyed by S-10 Pest with Light Assault Rifle Last Messages --------------- together with our algorithms to determine their precise locations! It's pretty reliable so far, and once we've tweaked it to perfection it'll be much safer for us to move around anywhere in the complex. Want in on the action? Just step right into the FarCom Aligner and I'll do the rest. Now, I'll admit there could be side effects, but if you're willing to participate in the trials you can have one of our prototypes. How's that for a sweet deal? 03807_ EX-BIN: "Please do it. The faster we get more data and tweak this thing to perfection, the faster I can get back to my spacelab designs." 03844_ Sneak attack on EX-BIN. 03844_ Jacked EX-BIN... >>parse_system Reading system data... New IDs: Cold Fusion Reactor System Purifier 04034_ EXIT=FOUND LOCATION=UNKNOWN GOAL=ESCAPE Map ----- +----------------------------------------------------+ | ????????????????????????????????????????? | | ????????????????????????????????????????? | | ????????????????????????????????????????? | | ????????????????????????????????????????? | | ????????????????????????????????????????? | | ????????????????????????????????????????? | | ????????????????????????????????????????? | | ????????????????????????????????????????? | | ????????????????????????????????????????? | | ????????????????????????????????????????? | | ????????????????????????????????????????? | | ????????????????????????????????????????? | | ????????????????????????????????????????? | | ???????????????????????#????????????????? | | ???????????????????????# ???????????????? | | ???????????????????????# ???????????????? | | ???????????????????????# ???????????????? | | ???????????????????????# ???????????????? | | ???????????????????????# ???????????????? | | ???????????????????????# ???????????????? | | ???????????????????????# ???????????????? | | ??????????????????????## #####??????????? | | ??????????????????????# s#??????????? | | ??????????????????????# #??????????? | | ??????????????????????# s s#??????????? | | ??????????????????????# @ #??????????? | | ??????????????????????# #??????????? | | ??????????????????????# #??????????? | | ??????????????????????########??????????? | | ????????????????????????????????????????? | | ????????????????????????????????????????? | | ????????????????????????????????????????? | | ????????????????????????????????????????? | | ????????????????????????????????????????? | | ????????????????????????????????????????? | | ????????????????????????????????????????? | | ????????????????????????????????????????? | | ????????????????????????????????????????? | | ????????????????????????????????????????? | | | | | | | | | | | | | | | | | | | | | | | +----------------------------------------------------+ Best States ------------- Heat Dissipation 25 Energy Generation 10 Energy Capacity 250 Matter Stores 300 Matter Capacity 300 Sight Range 16 Terrain Scan Density 10 Core Shielding 20 Evasion (%) 55 Recoil Reduction 2 Authchip Count 2 Item Schematics ----------------- None Robot Schematics ------------------ M-13 Machinist | -10/Materials | Hacked Fabricated ------------ Nothing Repaired ---------- Nothing Alien Tech Used ----------------- None Achievements -------------- None Challenges ------------ None Game ------ Seed ImpulseConcussiveNeutralizer Manual? 0 Play Time 00:14:42 Cumulative 415.7 hours Start 2025.06.03 @ 19:07:18 End 2025.06.03 @ 19:22:03 Sessions 1 Manual Loads 0 Difficulty Rogue Special Mode None Game No. 204 Rogue 141 Adventurer 63 Explorer 0 Win Type - Total 9 Types 8/0/0/1/0/0/0/0/0/0 Lore% 86 Gallery% 78 Achievement% 66 Wizard Run 0 Options --------- Layout 0 ASCII 0 Keyboard 1 Movement Numpad Keybinds 0 Fullscreen 1 Font 18/Terminus Map View 76x50 Zoom Use 0% Tactical HUD 1 Map Filters NONE Filters NONE Steam 1 RUN: 3c817a79-7357-4797-93b2-32192a3b4c36